Cogmind - Beta 11.1 @@@ ROGUE MODE // 2022.11.24 @ 11:45:21 Player: Themeralderp Result: Destroyed by G-34 Mercenary with Small Laser Performance ------------- Evolutions (0) 0 Regions Visited (1) 200 Robots Destroyed (10) 50 Value Destroyed (278) 278 Prototype IDs (0) 0 Alien Tech Used (0) 0 Bonus (0) 0 TOTAL SCORE: 528 Bonus ------- None Cogmind --------- Core Integrity 0/250 Matter 255/300 Energy 248/250 System Corruption 2% Temperature Cool (6) Movement Rolling (105) Ox1 Location -10/Materials Parts ------- > --- POWER (1) -------- Ion Engine > --- PROPULSION (2) --- Wheel Compact Wheel > --- UTILITY (2) ------ Large Storage Unit > --- WEAPON (2) ------- Small Laser Light Cannon > --- INVENTORY (15) --- Light Ion Engine Light Ion Engine Sensor Array Improved Terrain Scanner Tractor Beam Small Laser Assault Rifle Peak State ------------ > --- POWER ------------ Light Ion Engine > --- PROPULSION ------- Wheel Wheel > --- UTILITY ---------- Large Storage Unit Seismic Detector > --- WEAPON ----------- Medium Laser Assault Rifle > --- INVENTORY -------- Light Ion Engine Wheel Sensor Array Improved Terrain Scanner Tractor Beam Small Laser Assault Rifle Light Cannon [Rating: 8] Favorites ----------- Power Ion Engine Engine Ion Engine Propulsion Wheel Wheel Wheel Utility Seismic Detector Device Seismic Detector Storage Small Storage Unit Weapon Assault Rifle Energy Gun Medium Laser Ballistic Gun Assault Rifle Ballistic Cannon Light Cannon Special Weapon Mining Laser Build | -11 -10 ------- Run | Scr Mat Slots Evolved . | . . Power . | . . Propulsion . | . . Utility . | . . Weapon . | . . Parts Attached 18 | 11 7 Power 4 | 2 2 Engine 4 | 2 2 Core . | . . Reactor . | . . Propulsion 5 | 3 2 Treads . | . . Leg . | . . Wheel 5 | 3 2 Hover . | . . Flight . | . . Utility 3 | 2 1 Device 1 | 1 . Storage 2 | 1 1 Processor . | . . Hackware . | . . Protection . | . . Artifact . | . . Weapon 6 | 4 2 Energy Gun 3 | 2 1 Energy Cannon . | . . Ballistic Gun 1 | 1 . Ballistic Cannon 1 | . 1 Launcher . | . . Special Weapon 1 | 1 . Impact Weapon . | . . Slashing Weapon . | . . Piercing Weapon . | . . Special Melee Weapon . | . . Unidentified Prototypes . | . . Parts Lost 8 | 1 7 Power 3 | 1 2 Propulsion 2 | . 2 Utility 1 | . 1 Weapon 2 | . 2 Highest Loss Streak 7 | 1 7 To Critical Strikes . | . . Average Slot Usage (%) 83 | . 83 Engine 12 | . 12 Wheel 19 | . 19 Device 8 | . 8 Storage 14 | . 14 Energy Gun 14 | . 14 Ballistic Gun 8 | . 8 Ballistic Cannon 5 | . 5 Naked Turns . | . . Heaviest Build 29 | 15 29 Greatest Support 26 | 26 26 Greatest Overweight (x) 2 | . 2 Average Overweight (x) . | . 1 Largest Inventory Capacity 15 | 8 15 Average Capacity 10 | 7 14 Most Carried 9 | 7 9 Average Carried 5 | 4 6 Final Capacity 15 | 8 15 Final Carried 7 | 4 7 Class Distribution -------------------- 100% | Mutant Dominant Class ---------------- Mutant | -10/Materials Resources | -11 -10 ----------- Run | Scr Mat Matter Collected 392 | 266 126 Remotely . | . . Salvage Created 475 | 83 392 Parts 24 | 8 16 Haulers Intercepted . | . . Recyclers Shooed . | . . Parts Field Recycled . | . . Retrieved Matter . | . . Parts Self-Destructed . | . . Prevented . | . . Kills | -11 -10 ------- Run | Scr Mat Combat Hostiles Destroyed 6 | . 6 Guns 2 | . 2 Cannons 4 | . 4 Classes Destroyed 4 | 2 2 Tunneler 1 | 1 . Recycler 2 | 1 1 Watcher 1 | . 1 Grunt 6 | . 6 Best Kill Streak 5 | 2 5 Combat Bots Only 5 | . 5 Max Kills in Single Turn 1 | 1 1 Gunslinging . | . . Exploded . | . . Melee . | . . Uniques/NPCs Destroyed . | . . Combat | -11 -10 -------- Run | Scr Mat Damage Taken 935 | 268 667 Core 254 | 56 198 Absorbed by Shields . | . . Core Remaining (%) 77 | 77 . Volleys Fired 53 | 24 29 Largest 2 | 2 2 Hottest 100 | 100 75 Shots Fired 76 | 26 50 Gun 44 | 4 40 Cannon 10 | . 10 Launcher . | . . Special 22 | 22 . Kinetic 25 | 2 23 Thermal 51 | 24 27 Explosive . | . . Electromagnetic . | . . Robot Hit Streak 8 | 3 8 Robot Miss Streak 3 | . 3 Penetration Max . | . . Secondary Targets 1 | . 1 Max Gunslinging Chain 1 | . 1 Shots Hit Robots 35 | 3 32 Core Hits 20 | 3 17 Critical Kills . | . . Critical Parts Destroyed . | . . Critical Strikes 1 | . 1 Burn 1 | . 1 Melee Attacks . | . . Impact . | . . Slashing . | . . Piercing . | . . Sneak Attacks . | . . Combat Hostiles . | . . Follow-up Attacks . | . . Damage Inflicted 492 | 38 454 Guns 367 | 38 329 Cannons 125 | . 125 Explosions . | . . Melee . | . . Ramming . | . . Kinetic 273 | 12 261 Thermal 219 | 26 193 Explosive . | . . Electromagnetic . | . . Impact . | . . Slashing . | . . Piercing . | . . Highest Corruption 2 | 2 2 Average Corruption 2 | 2 2 Corruption Purged . | . . Corruption Blocked . | . . Effects 2 | . 2 Matter Fused 2 | . 2 Overload Shots . | . . Overflow Damage . | . . Projectiles . | . . Explosions . | . . Melee . | . . Knockbacks . | . . Impact . | . . Kinetic . | . . Secondary . | . . Self-Inflicted Damage . | . . Shots . | . . Rammed . | . . Targets Rammed . | . . Kicked . | . . Crushed . | . . Highest Temperature 289 | 220 289 Average Temperature 108 | 86 136 Received Heat Transfer 375 | . 375 Effects 4 | . 4 Energy Bleed 2 | . 2 Interference 2 | . 2 Siege Activations . | . . Robots Corrupted . | . . Combat Hostiles . | . . Parts Fried . | . . Impact Corruptions . | . . Robots Melted . | . . Combat Hostiles . | . . Parts Melted 1 | . 1 Heat Transferred 656 | 74 582 Parts Sabotaged . | . . Parts Stolen . | . . Parts Stripped . | . . Power Chain Reactions . | . . Missiles Intercepted . | . . Alert | -11 -10 ------- Run | Scr Mat Peak Influence 142 | 10 142 Initial . | . . Average 31 | 7 57 Maximum Alert Level . | . . Low Security (%) 100 | 100 100 Level 1 . | . . Level 2 . | . . Level 3 . | . . Level 4 . | . . Level 5 . | . . High Security . | . . Max Security . | . . Squads Dispatched 1 | . 1 Investigation . | . . Extermination . | . . Reinforcement 1 | . 1 Assault . | . . Garrison . | . . Intercept . | . . Searches Triggered . | . . Construction Impeded . | . . Haulers Reinforced . | . . Active Scanning Responses . | . . Cargo Convoy Interrupts . | . . Stealth | -11 -10 --------- Run | Scr Mat Distress Signals 3 | . 3 Communications Jammed . | . . Distress Signals . | . . Times Spotted 13 | . 13 Peak Tracking Total 8 | . 8 Tactical Retreats 1 | . 1 Traps | -11 -10 ------- Run | Scr Mat Traps Triggered . | . . Indirectly . | . . Trap Hack Attempts . | . . Triggered . | . . Disarmed . | . . Reprogrammed . | . . Reused . | . . Traps Extracted . | . . Installed . | . . Triggered . | . . Machines | -11 -10 ---------- Run | Scr Mat Machines Disabled . | . . Max in Single Turn . | . . Machines Sabotaged . | . . Garrisons Compromised . | . . Overloaded Fab Kills . | . . Hacking | -11 -10 --------- Run | Scr Mat Machines Accessed 1 | . 1 Terminals 1 | . 1 Fabricators . | . . Repair Stations . | . . Recycling Units . | . . Scanalyzers . | . . Garrison Access . | . . Total Hacks 3 | . 3 Successful 1 | . 1 Failed 2 | . 2 Catastrophic . | . . Database Lockouts . | . . Manual 1 | . 1 Terminals 3 | . 3 Fabricators . | . . Repair Stations . | . . Recycling Units . | . . Scanalyzers . | . . Garrison Access . | . . Terminal Hacks . | . . Fabricator Hacks . | . . Repair Station Hacks . | . . Recycling Unit Hacks . | . . Scanalyzer . | . . Garrison Access Hacks . | . . Unauthorized Hacks 1 | . 1 Terminals 1 | . 1 Assimilate 1 | . 1 Fabricators . | . . Repair Stations . | . . Recycling Units . | . . Scanalyzers . | . . Garrison Access . | . . Data Cores Recovered . | . . Used . | . . Hacking Detections 1 | . 1 Full Trace Events 1 | . 1 Feedback Events . | . . Feedback Blocked . | . . Robot Schematics Acquired . | . . Robots Built . | . . Authchips . | . . Time . | . . Total Robot Build Rating . | . . Part Schematics Acquired . | . . Parts Built . | . . Authchips . | . . Time . | . . Total Part Build Rating . | . . Parts Repaired . | . . Time . | . . Parts Recycled . | . . Recycled Matter . | . . Retrieved Matter . | . . Retrieved Components . | . . Parts Scanalyzed . | . . Part Schematics Acquired . | . . Parts Damaged . | . . Bothacking | -11 -10 ------------ Run | Scr Mat Used RIF Installer . | . . Robots Hacked . | . . Non-combat . | . . Combat . | . . Robot Hacks Applied . | . . Relay Couplers Released . | . . Fabnet Peak Effective % . | . . Robots Rewired . | . . Allies Hacked . | . . Hacks Repelled . | . . Allies | -11 -10 -------- Run | Scr Mat Total Allies 1 | . 1 Largest Group 1 | . 1 Highest-Rated Group 10 | . 10 Highest-Rated Ally 10 | . 10 Total Orders . | . . Ally Attacks . | . . Total Damage . | . . Kills . | . . Allies Corrupted . | . . Allies Melted . | . . Intel | -11 -10 ------- Run | Scr Mat Robot Analysis Total . | . . Derelict Logs Recovered . | . . Drone Launches . | . . Drone Recoveries . | . . Exploration | -11 -10 ------------- Run | Scr Mat Turns Passed 419 | 218 201 Spaces Moved 203 | 98 105 Core 5 | 5 . Treads . | . . Legs . | . . Wheels 198 | 93 105 Hover . | . . Flight . | . . Fastest Speed 50 | 50 80 Average Speed 88 | 81 95 Slowest Speed 110 | 90 110 Overloaded Moves . | . . Propulsion Burnouts . | . . Robots Hopped . | . . Cave-ins Triggered 1 | 1 . Exploration Rate (%) 14 | 5 24 Regions Visited 1 Branch Regions . Pre-discovered Areas . | . . Known Exits Taken . | . . Unknown Exits Taken 1 | 1 . Scrap Searched . | . . Spaces Dug 9 | 9 . Terrain Destroyed 14 | 14 . Melee . | . . Projectile 14 | 14 . AOE . | . . Terrain Rammed . | . . Walls Destroyed . | . . Machines Disabled . | . . Actions | -11 -10 --------- Run | Scr Mat Total 323 | 166 157 Wait 17 | 14 3 Move 202 | 97 105 Hop . | . . Pick Up 27 | 16 11 Fast Attach . | . . Attach 14 | 8 6 Detach . | . . Swap 4 | 3 1 Drop 6 | 4 2 Fire 53 | 24 29 Melee . | . . Ram . | . . Kick . | . . Crush . | . . Escape Stasis . | . . Rewire . | . . Trap . | . . Miscellaneous . | . . Route ------- -11/Scrapyard -10/Materials History --------- Turn | Location | Event 18 | -11/Scrapyard | Discovered new exit (range 16) 193 | -11/Scrapyard | Crushed by falling debris 219 | -11/Scrapyard | Entered Materials 300 | -10/Materials | Build established: Mutant 338 | -10/Materials | Core integrity fell below 50% 350 | -10/Materials | Core integrity fell below 20% 384 | -10/Materials | Lost 7 parts (2p2n1u2w) 420 | -10/Materials | Destroyed by G-34 Mercenary with Small Laser Last Messages --------------- 00371_ Acquired 50 matter. 00374_ Acquired Sml. Laser. 00374_ R-06 Scavenger collects Lgt. Nuclear Core. 00375_ Acquired 56 matter. 00377_ K-01 Serf collects debris. 00377_ R-06 Scavenger collects Ion Engine. 00381_ R-06 Scavenger collects Imp. Heat Sink. 00382_ Acquired Lgt. Ion Engine. 00382_ K-01 Serf collects debris. 00394_ R-06 Scavenger destroyed. 00394_ K-01 Serf collects debris. 00399_ Acquired Lgt. Ion Engine. 00403_ K-01 Serf collects debris. 00410_ G-47 Trooper destroyed. 00412_ K-01 Serf collects debris. 00414_ Acquired Tractor Beam. 00416_ K-01 Serf collects debris. 00417_ Acquired Com. Wheel. 00419_ Dropped Tractor Beam. 00420_ K-01 Serf collects debris. Map ----- +----------------------------------------------------+ | ?????????????????????????????????????????????????? | | ?????????????????????????????????????????????????? | | ?????????????????????????????????????????????????? | | ?????????????????????????????????????????????????? | | ?????????????????????????????????????????????????? | | ?????????????????????????????????????????????????? | | ?????????????????????????????????????????????????? | | ?????????????????????????????????????????????????? | | ????????##########???????????????????????????????? | | ???????? #???????????????????????????????? | | ???????? #???????????????????????????????? | | ????????? +???????????????????????????????? | | ????? ? ?""""" #???????????????????????????????? | | ?????# """"" #???????????????????????????????? | | ?????# """"% #???????????????????????????????? | | ?????# """"% ! #???????????????????????????????? | | ?????# """"" #???????????????????????????????? | | ?????# % """"" = ###?????????????????????????????? | | ?????# ""%"" ""#?????????????????????????????? | | ?????# % % ""#?????????????????????????????? | | ?????# [ ! T"#?????????????????????????????? | | ?????# = ""#?????????????????????????????? | | ?????# %=""#?????????????####????????????? | | ?????# % %###########+## ## ?????????? | | ?????# % =% !%* g k ????????? | | ? + % %w @! T a??????????? | | " # % u ! g ????????? | | ? ??# ## k #########+## ##???????????? | | ?????## ###! !#????????? #??? ##????????????? | | ??????# #?#! !#?????????????????????????????? | | ??????# #?##!!!!##?????????????????????????????? | | ??????# #??######??????????????????????????????? | | ?????## ##?????????????????????????????????????? | | ?????# ######????????????????????????????????? | | ?????# #????????????????????????????????? | | ?????# #????????????????????????????????? | | ?????# #????????????????????????????????? | | ?????# ## ! #????????????????????????????????? | | ???#####+#### #????????????????????????????????? | | ???# # ######???????????????????????????? | | ???# # # #???????????????????????????? | | #### """ # # #???????????????????????????? | | ## """ # # #???????????????????????????? | | ## """ ! # # ! #???????????????????????????? | | ## # #! #???????????????????????????? | | #######+### # #???????????????????????????? | | # + #???????????????????????????? | | + # #???????????????????????????? | | # # #???????????????????????????? | | # ##+#+######???????????????????????????? | +----------------------------------------------------+ Best States ------------- Heat Dissipation 25 Energy Generation 10 Energy Capacity 250 Matter Stores 281 Matter Capacity 300 Sight Range 16 Terrain Scan Density 10 Evasion (%) 44 Item Schematics ----------------- None Robot Schematics ------------------ None Fabricated ------------ Nothing Alien Tech Used ----------------- None Achievements -------------- None Challenges ------------ None Game ------ Seed RocketGraphenePrototype Manual? 0 Play Time 00:07:07 Cumulative 45.4 hours Start 2022.11.24 @ 11:38:01 End 2022.11.24 @ 11:45:21 Sessions 3 Manual Loads 0 Difficulty Rogue Special Mode None Game No. 25 Rogue 19 Adventurer 6 Explorer 0 Win Type - Total 0 Types 0/0/0/0/0/0/0/0/0 Lore% 37 Gallery% 43 Achievement% 35 Wizard Run 0 Options --------- ASCII 0 Keyboard 0 Movement Mouse Keybinds 0 Fullscreen 1 Font 18/SmallcapsGlow Map View 76x50 Tactical HUD 1 Map Filters NONE Filters NONE Steam 1 RUN: 7d144ecf-66b0-4796-80fd-20341ee77288